Cogmind - Beta 14 @@@ ROGUE MODE // 2024.08.31 @ 07:26:25 Player: Dosh Result: Destroyed self with Heavy Missile Launcher Performance ------------- Evolutions (4) 2000 Regions Visited (21) 4200 Robots Destroyed (495) 2475 Value Destroyed (16408) 16408 Prototype IDs (28) 560 Alien Tech Used (0) 0 Bonus (2943) 2943 TOTAL SCORE: 28586 Bonus ------- High Alert Combat Kills 1682 Follower Combat Kills 736 Entered Garrisons 400 Met Data Miner 300 Acquired ECA 300 Friendly Fire -475 Cogmind --------- Core Integrity 0/850 Matter 248/300 Energy 88/100 System Corruption 10% Temperature Cool (0) Movement Walking (330) Ox3 Location -6/Extension Parts ------- > --- POWER (2) -------- (None) > --- PROPULSION (4) --- Armored Leg > --- UTILITY (7) ------ High-capacity Storage Unit Advanced Melee Analysis Suite Advanced Melee Analysis Suite Microactuators > --- WEAPON (2) ------- Heavy Missile Launcher > --- INVENTORY (20) --- Enhanced Flexi-carbon Leg Improved Cooling System Advanced Energy Well (500) Weapon Mount Advanced Transmission Jammer Improved Utility Shielding Improved Heavy Armor Plating Experimental Thermal Shield High-powered Tractor Beam Sensor Drone Bay (19/20) Heavy Plasma Cannon Enhanced Autogun Peak State ------------ > --- POWER ------------ Enhanced Nuclear Core Enhanced Nuclear Core > --- PROPULSION ------- Armored Huge Wheel Armored Huge Wheel > --- UTILITY ---------- High-capacity Storage Unit Advanced Transmission Jammer Improved Medium Armor Plating Experimental Thermal Shield Hacking Suite System Shield Sensor Drone Bay > --- WEAPON ----------- Heavy Plasma Cannon Great Axe > --- INVENTORY -------- Enhanced Nuclear Core Armored Leg Enhanced Flexi-carbon Leg Armored Huge Wheel Improved Cooling System Advanced Energy Well Microactuators Improved Reaction Control System Improved Utility Shielding Improved Utility Shielding Hardened Medium Armor Plating Layered Medium Armor Plating Force Field High-powered Tractor Beam Enhanced Autogun Heavy Missile Launcher Great Axe Spear Makeshift Spear [Rating: 78] Favorites ----------- Power Reinforced Deuterium Engine Engine Reinforced Deuterium Engine Power Core Enhanced Nuclear Core Propulsion Light Treads Treads Light Treads Leg Improved Carbon-fiber Leg Wheel Armored Huge Wheel Utility High-capacity Storage Unit Device Improved Cooling System Storage High-capacity Storage Unit Processor Machine Analyzer Hackware Hacking Suite Protection Medium Reactive Plating Weapon Enhanced Autogun Energy Gun Heavy Laser Energy Cannon Heavy Plasma Cannon Ballistic Gun Enhanced Autogun Ballistic Cannon Flak Cannon Launcher Missile Launcher Impact Weapon Impact Mace Slashing Weapon Great Axe Piercing Weapon Spear Build | -11 -10 -10 -9 -9 -9 -8 -8 -8 -8 -8 -8 -8 -7 -7 -7 -7 -6 -6 -6 -6 -6 ------- Run | Yrd Mat Min Mat Min Exi Min Mat Gar Mat Gar Mat Sto Fac Low Low Dat Pro Fac Was Fac Ext Slots Evolved 8 | . . . 2 . . . 2 . . . . . 2 . . . . 2 . . . Power 1 | . . . . . . . . . . . . . . . . . . 1 . . . Propulsion 2 | . . . 1 . . . . . . . . . 1 . . . . . . . . Utility 5 | . . . 1 . . . 2 . . . . . 1 . . . . 1 . . . Weapon . | . . . . . . . . . . . . . . . . . . . . . . Parts Attached 358 | 6 12 8 28 2 . 4 34 10 15 9 13 14 34 24 12 14 25 36 . 32 26 Power 22 | 1 2 1 2 . . 1 2 . . . . 1 1 . . . 1 5 . 2 3 Engine 16 | 1 1 1 2 . . 1 2 . . . . 1 . . . . 1 4 . . 2 Core 6 | . 1 . . . . . . . . . . . 1 . . . . 1 . 2 1 Reactor . | . . . . . . . . . . . . . . . . . . . . . . Propulsion 82 | 2 2 2 11 . . 1 9 5 2 1 6 3 7 . . 2 6 16 . 2 5 Treads 44 | 2 2 2 11 . . 1 9 2 . . 4 3 6 . . . 1 1 . . . Leg 19 | . . . . . . . . 3 2 1 2 . . . . 2 1 6 . . 2 Wheel 19 | . . . . . . . . . . . . . 1 . . . 4 9 . 2 3 Hover . | . . . . . . . . . . . . . . . . . . . . . . Flight . | . . . . . . . . . . . . . . . . . . . . . . Utility 134 | 1 2 2 9 2 . . 10 1 4 3 3 6 13 17 4 9 9 6 . 22 11 Device 63 | . . 1 . 1 . . 4 . 1 2 2 2 5 10 4 5 6 1 . 14 5 Storage 7 | 1 1 . 2 . . . 1 . . . . . 1 . . 1 . . . . . Processor 4 | . . . . . . . 1 . . . . . 1 . . . . . . . 2 Hackware 5 | . . . . . . . 1 . . . . 1 1 . . . . 1 . 1 . Protection 55 | . 1 1 7 1 . . 3 1 3 1 1 3 5 7 . 3 3 4 . 7 4 Artifact . | . . . . . . . . . . . . . . . . . . . . . . Weapon 120 | 2 6 3 6 . . 2 13 4 9 5 4 4 13 7 8 3 9 9 . 6 7 Energy Gun 8 | 1 . . 2 . . . 3 2 . . . . . . . . . . . . . Energy Cannon 4 | . . . 1 . . . . . . . . . . . . . . . . 2 1 Ballistic Gun 47 | 1 5 2 3 . . 2 4 . 6 3 2 3 6 3 4 . 3 . . . . Ballistic Cannon 5 | . 1 . . . . . 4 . . . . . . . . . . . . . . Launcher 23 | . . 1 . . . . 2 2 1 1 2 1 2 1 3 . 3 3 . . 1 Special Weapon . | . . . . . . . . . . . . . . . . . . . . . . Impact Weapon 1 | . . . . . . . . . . . . . . . . . . 1 . . . Slashing Weapon 26 | . . . . . . . . . 2 1 . . 5 3 . 2 1 5 . 3 4 Piercing Weapon 6 | . . . . . . . . . . . . . . . 1 1 2 . . 1 1 Special Melee Weapon . | . . . . . . . . . . . . . . . . . . . . . . Unidentified Prototypes 15 | . . 1 3 1 . . 2 . . . . 1 1 1 . 3 . 1 . 1 . Parts Lost 69 | . 1 5 2 . . 5 7 1 1 2 1 5 1 . . 2 6 6 . 3 21 Power 8 | . 1 1 . . . 1 . . . . . . . . . . . 1 . . 4 Propulsion 19 | . . 2 . . . 1 3 1 . 1 . . . . . . 2 3 . . 6 Utility 25 | . . 1 1 . . 1 2 . . . 1 4 1 . . 2 3 1 . 2 6 Weapon 17 | . . 1 1 . . 2 2 . 1 1 . 1 . . . . 1 1 . 1 5 Highest Loss Streak 12 | . 1 5 1 . . 5 4 1 1 1 1 2 1 . . 2 4 4 . 1 12 To Critical Strikes 2 | . . . . . . . . . . . . . . . . . 1 . . . 1 Average Slot Usage (%) 93 | . 93 97 97 100 100 96 97 99 99 100 99 91 89 86 92 91 87 91 93 86 82 Engine 7 | . 10 13 11 11 11 11 9 9 9 9 9 8 1 . . . 6 12 6 2 4 Core 2 | . 3 . . . . . . . . . . . 5 7 7 7 . . 6 10 7 Treads 16 | . 28 28 32 33 33 33 26 24 . . 15 27 17 15 15 8 3 4 . . . Leg 5 | . . . . . . . . 2 26 27 10 . . . . 6 13 8 . . . Wheel 3 | . . . . . . . . . . . . . 6 7 7 7 6 11 26 14 12 Device 9 | . . . . . . . 9 9 11 11 18 9 10 12 15 12 17 12 6 12 11 Storage 8 | . 14 14 11 11 11 11 9 9 9 9 9 9 7 7 7 7 7 6 6 6 6 Processor 3 | . . . . . . . 3 9 1 . . . 5 7 7 7 7 6 6 . 9 Hackware 4 | . . . . . . . 8 9 9 9 9 3 1 . . . . 5 6 12 1 Protection 13 | . 8 12 20 21 22 18 12 9 13 15 9 15 15 11 15 16 7 6 13 12 15 Energy Gun 1 | . 4 . 2 . . . 2 3 4 . . . . . . . . . . . . Ballistic Gun 12 | . 22 27 19 22 22 22 9 9 13 16 17 17 14 9 9 1 4 5 . . . Slashing Weapon 2 | . . . . . . . . . . 1 . . . 5 . 6 6 6 13 7 9 Peak Build Rating 78 | 6 8 16 24 29 25 26 38 45 47 47 47 41 58 63 63 71 71 67 52 78 71 Average Rating 43 | 4 7 8 18 24 25 24 33 36 45 46 43 36 54 60 62 62 54 60 51 70 65 On Entrance 38 | . 6 8 9 24 25 25 22 38 45 46 46 41 36 57 63 62 71 47 51 52 71 Naked Turns . | . . . . . . . . . . . . . . . . . . . . . . Heaviest Build 118 | 13 22 23 69 69 69 69 87 84 107 107 88 103 118 109 97 110 110 118 87 102 92 Greatest Support 84 | 40 40 40 69 69 69 69 69 66 54 54 66 64 84 28 28 56 71 78 46 56 60 Greatest Overweight (x) 9 | . . . 1 . . . 1 1 1 1 3 1 4 3 3 3 9 5 1 2 3 Average Overweight (x) 1 | . . . . . . . . 1 1 1 1 1 2 2 2 2 1 2 1 1 1 Largest Inventory Capacity 20 | 8 10 10 20 20 20 20 20 20 20 20 20 20 20 20 20 20 20 20 20 20 20 Average Capacity 18 | 6 9 10 16 20 20 20 20 20 20 20 20 20 20 20 20 20 20 20 20 20 20 Most Carried 20 | 2 10 10 19 17 18 20 20 20 20 20 20 20 20 20 20 20 20 20 20 20 20 Average Carried 17 | 1 6 8 14 16 17 18 19 19 19 19 19 19 19 19 20 19 18 18 19 19 18 Final Capacity 20 | 8 10 10 20 20 20 20 20 20 20 20 20 20 20 20 20 20 20 20 20 20 20 Final Carried 20 | 2 10 7 16 17 18 17 20 20 20 18 20 20 20 20 20 20 19 19 20 20 13 Class Distribution -------------------- 72% | Mutant 5% | Scavenger-Mutant 5% | Hacker-Mutant 4% | Scavenger-Gladiator 4% | Gladiator 3% | Hacker-Gladiator 3% | Commander-Mutant Dominant Class ---------------- Mutant | -10/Materials Mutant | -10/Mines Mutant | -9/Materials Mutant | -9/Mines Mutant | -9/Exiles Mutant | -8/Mines Mutant | -8/Materials Mutant | -8/Garrison Mutant | -8/Materials Mutant | -8/Garrison Mutant | -8/Materials Commander-Mutant | -8/Storage Mutant | -7/Factory Mutant | -7/Lower Caves Mutant | -7/Lower Caves Mutant | -7/Data Miner Scavenger-Gladiator | -6/Proximity Caves Scavenger-Mutant | -6/Factory Scavenger-Gladiator | -6/Waste Hacker-Mutant | -6/Factory Gladiator | -6/Extension Resources | -11 -10 -10 -9 -9 -9 -8 -8 -8 -8 -8 -8 -8 -7 -7 -7 -7 -6 -6 -6 -6 -6 ----------- Run | Yrd Mat Min Mat Min Exi Min Mat Gar Mat Gar Mat Sto Fac Low Low Dat Pro Fac Was Fac Ext Matter Collected 12256 | 193 432 162 929 108 . 425 1769 277 981 871 957 638 1606 471 359 241 544 460 . 573 260 Remotely 123 | . . . . . . . . . . . . . . . 123 . . . . . . Salvage Created 19491 | . 1072 65 1634 118 . 623 2069 416 1355 1163 1529 884 2145 466 224 285 1100 737 . 1748 1858 Parts 1005 | . 56 2 114 12 . 22 121 26 81 57 88 45 107 14 18 10 28 30 . 105 69 Haulers Intercepted 27 | . 2 . 5 . . . 5 . 5 . 3 3 2 1 . . . 1 . . . Recyclers Shooed 23 | . . . 5 . . . 4 . 4 . . 1 6 . . . . 2 . 1 . Parts Field Recycled . | . . . . . . . . . . . . . . . . . . . . . . Retrieved Matter . | . . . . . . . . . . . . . . . . . . . . . . Parts Self-Destructed 42 | . . . . . . . . . . . . . . 14 14 . 14 . . . . Prevented 1 | . . . . . . . . . . . . . . 1 . . . . . . . Kills | -11 -10 -10 -9 -9 -9 -8 -8 -8 -8 -8 -8 -8 -7 -7 -7 -7 -6 -6 -6 -6 -6 ------- Run | Yrd Mat Min Mat Min Exi Min Mat Gar Mat Gar Mat Sto Fac Low Low Dat Pro Fac Was Fac Ext Combat Hostiles Destroyed 370 | . 18 12 31 5 . 14 48 18 22 29 27 13 28 8 12 3 17 16 . 27 22 Melee 64 | . . . . . . . . . . . . . . 3 . 3 5 6 . 26 21 Guns 203 | . 17 3 31 5 . 14 25 2 19 25 22 13 23 1 1 . 2 . . . . Cannons 16 | . . . . . . . 16 . . . . . . . . . . . . . . AOE 87 | . 1 9 . . . . 7 16 3 4 5 . 5 4 11 . 10 10 . 1 1 Classes Destroyed 20 | . 6 4 3 1 . 2 2 . . . . . 1 1 . . . . . . . Worker 31 | . 1 . 3 . . 2 8 . 2 . 2 1 4 . . . . 3 . 5 . Builder 15 | . . . . 1 . . 2 . . . 2 . 2 . . . . 2 . 5 1 Tunneler 2 | . . 1 1 . . . . . . . . . . . . . . . . . . Hauler 27 | . 2 . 5 . . . 5 . 5 . 3 3 2 1 . . . 1 . . . Recycler 22 | . 1 . 1 . . . 3 . 1 . . 1 9 . . . . 1 . 1 4 Minesweeper 2 | . . . . . . . . . . . . . . 2 . . . . . . . Mechanic 4 | . . . . . . . 1 . . . 2 . . . . . 1 . . . . Operator 10 | . 2 . 1 . . . 2 . . . 2 . 2 . . . . . . 1 . Watcher 22 | . 2 . 5 . . . 5 . 5 1 1 1 . . . . . . . 1 1 Swarmer 68 | . . . 7 4 . . 7 4 7 7 2 . 6 . 8 . 2 6 . 8 . Grunt 185 | . 18 . 14 . . 11 24 10 6 14 16 9 14 7 3 . 9 7 . 10 13 Brawler 13 | . . . 1 1 . . 3 1 . 1 2 1 . . . . 3 . . . . Duelist 11 | . . . . . . 2 3 . . 2 3 . . . . . . 1 . . . Protector 1 | . . . . . . . 1 . . . . . . . . . . . . . . Sentry 61 | . . . 9 . . . 10 2 7 5 5 3 5 1 1 . 2 1 . 3 7 Demolisher 1 | . . 1 . . . . . . . . . . . . . . . . . . . Hunter 9 | . . . . . . 1 . 1 2 . . . . . . . 1 . . 2 2 Programmer 8 | . . . . . . . . . . . . . 3 . . . . 1 . 4 . Enhanced Grunt 3 | . . . . . . . . . . . . . . . . 3 . . . . . Zionite 1 | . . 1 . . . . . . . . . . . . . . . . . . . Assembled 11 | . . 11 . . . . . . . . . . . . . . . . . . . Best Kill Streak 14 | . 3 10 11 3 . 4 8 11 5 5 10 4 5 5 4 2 5 14 . 4 7 Combat Bots Only 11 | . 3 10 5 3 . 4 6 11 3 5 6 4 4 5 4 2 5 11 . 4 6 Max Kills in Single Turn 5 | . 1 4 2 2 . 2 3 2 4 1 3 1 4 3 3 1 2 5 . 1 1 Gunslinging . | . . . . . . . . . . . . . . . . . . . . . . Exploded 3 | . 1 3 . . . . 2 2 3 1 2 . 3 3 3 . 2 3 . 1 1 Melee 1 | . . . . . . . . . . . . . . 1 . 1 1 1 . 1 1 Uniques/NPCs Destroyed . | . . . . . . . . . . . . . . . . . . . . . . Combat | -11 -10 -10 -9 -9 -9 -8 -8 -8 -8 -8 -8 -8 -7 -7 -7 -7 -6 -6 -6 -6 -6 -------- Run | Yrd Mat Min Mat Min Exi Min Mat Gar Mat Gar Mat Sto Fac Low Low Dat Pro Fac Was Fac Ext Hostile Shots Fired 2171 | . 76 24 98 15 . 98 194 47 101 147 101 44 230 29 99 31 160 95 . 207 375 Missed 661 | . 21 4 31 4 . 27 60 20 26 36 26 6 77 11 44 8 66 35 . 54 105 Damage Taken 17448 | . 658 654 954 75 . 1024 1831 441 588 861 872 628 1609 226 283 742 1208 882 . 1514 2398 Core 2151 | . 86 68 52 14 . 117 159 39 62 48 62 95 182 23 51 42 183 79 . 176 613 Absorbed by Shields 3418 | . . . . . . . 212 . 276 436 315 8 . . 212 135 181 . . 664 979 Redirected to Shielding 204 | . . . . . . . . . . . . . . . . . 100 . . . 104 Ignored by Resistances 1402 | . . . 21 22 . 126 77 39 207 185 31 22 160 . 60 168 80 32 . 172 . Regen/Repaired (Parts) 1439 | . 219 . 11 . . . 89 . 261 . 349 386 . . . . . . . 124 . Core Remaining (%) 47 | 100 . 38 . . . 54 . . . . . 15 . . . . 31 . . . . Volleys Fired 1126 | . 100 18 106 11 . 53 166 41 111 87 99 59 156 29 23 . 28 9 . 9 21 Largest 2 | . 2 2 2 2 . 2 2 2 2 2 2 2 2 2 2 . 2 2 . 1 1 Hottest 109 | . 60 50 68 46 . 46 109 69 105 61 50 50 61 50 61 . 64 64 . 90 90 Shots Fired 2140 | . 200 31 204 22 . 106 321 59 220 173 190 118 311 54 41 . 44 15 . 10 21 Gun 1877 | . 200 25 204 22 . 106 183 35 219 162 182 118 308 48 31 . 28 6 . . . Cannon 155 | . . . . . . . 127 . . . . . . . . . . . . 10 18 Launcher 108 | . . 6 . . . . 11 24 1 11 8 . 3 6 10 . 16 9 . . 3 Special . | . . . . . . . . . . . . . . . . . . . . . . Kinetic 1800 | . 139 25 166 22 . 106 267 22 170 162 182 118 308 48 31 . 28 6 . . . Thermal 133 | . . . . . . . 43 13 49 . . . . . . . . . . 10 18 Explosive 108 | . . 6 . . . . 11 24 1 11 8 . 3 6 10 . 16 9 . . 3 Electromagnetic 99 | . 61 . 38 . . . . . . . . . . . . . . . . . . Robot Hit Streak 16 | . 9 4 13 4 . 13 11 10 8 15 7 14 16 10 12 . 6 5 . 1 2 Robot Miss Streak 11 | . 6 3 6 5 . 7 11 2 6 6 5 3 4 4 3 . 2 3 . 1 1 Penetration Max . | . . . . . . . . . . . . . . . . . . . . . . Secondary Targets 23 | . 4 . 2 . . 3 . . 2 4 5 1 2 . . . . . . . . Max Gunslinging Chain 1 | . 1 . 1 . . 1 . . 1 1 1 1 1 . . . . . . . . Shots Hit Robots 1659 | . 118 15 154 12 . 86 248 33 119 110 114 74 201 39 28 26 46 34 . 107 95 Core Hits 1038 | . 49 39 87 7 . 49 236 38 52 59 78 28 78 21 23 11 50 38 . 52 43 Critical Kills 3 | . 1 . . . . . 1 . 1 . . . . . . . . . . . . Critical Parts Destroyed 11 | . 1 . 1 1 . . 3 1 . 1 1 1 . . . . 1 . . . . Critical Strikes 51 | . 2 . 1 1 . . 4 1 2 1 1 1 . 1 . 3 5 4 . 13 11 Burn 1 | . . . . . . . . . 1 . . . . . . . . . . . . Destroy 14 | . 2 . 1 1 . . 4 1 1 1 1 1 . . . . 1 . . . . Sever 26 | . . . . . . . . . . . . . . 1 . 3 1 4 . 9 8 Impale 10 | . . . . . . . . . . . . . . . . . 3 . . 4 3 Melee Attacks 413 | . . . . . . . . . 3 7 . . 12 12 . 50 31 38 . 158 102 Impact . | . . . . . . . . . . . . . . . . . . . . . . Slashing 280 | . . . . . . . . . 3 7 . . 12 12 . 40 9 38 . 90 69 Piercing 133 | . . . . . . . . . . . . . . . . 10 22 . . 68 33 Sneak Attacks 37 | . . . . . . . . . . . . . 4 1 . 2 . 5 . 18 7 Combat Hostiles 6 | . . . . . . . . . . . . . . . . . . . . 3 3 Follow-up Attacks 29 | . . . . . . . . . . . . . . . . 8 . . . 16 5 Damage Inflicted 46025 | . 1403 1139 2489 205 . 1417 5338 1903 2495 2702 3346 1384 4113 1377 1423 968 3067 2873 . 4366 4017 Guns 19726 | . 1362 159 2361 201 . 1343 2063 260 2128 1843 2079 1339 3466 468 353 . 233 68 . . . Cannons 2109 | . . . . . . . 2003 . . . . . . . . . . . . 41 65 Explosions 12080 | . 35 969 65 . . . 1222 1643 285 831 1267 . 319 606 1070 . 1867 1550 . 245 106 Melee 11744 | . . . . . . . . . . . . . 327 303 . 968 967 1255 . 4080 3844 Ramming 366 | . 6 11 63 4 . 74 50 . 82 28 . 45 1 . . . . . . . 2 Kinetic 19485 | . 789 159 1780 201 . 1343 3504 240 1620 1843 2079 1339 3466 468 353 . 233 68 . . . Thermal 1541 | . 35 . 65 . . . 562 20 508 . . . . . . . . . . 286 65 Explosive 11674 | . . 969 . . . . 1222 1643 224 831 1267 . 319 606 1070 . 1867 1550 . . 106 Electromagnetic 1215 | . 573 . 581 . . . . . 61 . . . . . . . . . . . . Impact . | . . . . . . . . . . . . . . . . . . . . . . Slashing 8139 | . . . . . . . . . . . . . 327 303 . 815 161 1255 . 2477 2801 Piercing 3605 | . . . . . . . . . . . . . . . . 153 806 . . 1603 1043 Highest Corruption 18 | . 1 1 . . . . . . . . . 2 2 2 . . . . 15 18 15 Average Corruption 7 | . 1 1 . . . . . . . . . 1 1 1 . . . . 9 16 11 Corruption Purged 10 | . . . . . . . . . . . . . . 2 . . . . . 3 5 Corruption Blocked . | . . . . . . . . . . . . . . . . . . . . . . Effects 219 | . 6 3 . . . . . . . . . 17 17 5 . . . . 2 123 46 Message Errors 53 | . 1 . . . . . . . . . . 4 2 2 . . . . 1 27 16 Matter Fused 56 | . 3 . . . . . . . . . . 7 6 1 . . . . . 31 8 Heat Flow Errors 32 | . . 1 . . . . . . . . . 4 3 . . . . . . 18 6 Energy Discharges 21 | . . . . . . . . . . . . 1 2 . . . . . . 12 6 Parts Rejected 1 | . . . . . . . . . . . . . . . . . . . . 1 . Parts Fused 2 | . . . . . . . . . . . . . . . . . . . . 1 1 Data Loss (minor) 24 | . . 2 . . . . . . . . . 1 1 . . . . . . 16 4 Data Loss (major) 12 | . 2 . . . . . . . . . . . 1 . . . . . . 8 1 Misfires 4 | . . . . . . . . . . . . . . 2 . . . . . 2 . Alerts 7 | . . . . . . . . . . . . . 1 . . . . . . 3 3 Misdirections 5 | . . . . . . . . . . . . . . . . . . . 1 3 1 Weapon Failures 2 | . . . . . . . . . . . . . 1 . . . . . . 1 . Overload Shots . | . . . . . . . . . . . . . . . . . . . . . . Overflow Damage 1842 | . . 2 15 . . . 4 54 12 19 10 . 182 122 4 32 610 243 . 307 226 Projectiles 1 | . . . . . . . 1 . . . . . . . . . . . . . . Explosions 413 | . . 2 15 . . . 3 54 2 19 10 . . 52 4 . 66 46 . 140 . Melee 1428 | . . . . . . . . . 10 . . . 182 70 . 32 544 197 . 167 226 Knockbacks 55 | . . . . . . . 55 . . . . . . . . . . . . . . Impact . | . . . . . . . . . . . . . . . . . . . . . . Kinetic 53 | . . . . . . . 53 . . . . . . . . . . . . . . Secondary 2 | . . . . . . . 2 . . . . . . . . . . . . . . Self-Inflicted Damage 750 | . 15 . 81 . . . 68 105 43 . . . . 23 . . 103 96 . 34 182 Shots 24 | . 1 . 2 . . . 3 6 1 . . . . 1 . . 4 2 . 1 3 Rammed 33 | . 2 . 12 1 . 6 9 . . . . 2 1 . . . . . . . . Targets Rammed 52 | . 2 1 14 1 . 6 9 . 6 5 . 5 1 . . . . . . . 2 Kicked 13 | . . . . . . . . . 6 5 . . . . . . . . . . 2 Crushed 6 | . . 1 2 . . . . . . . . 3 . . . . . . . . . Highest Temperature 330 | . 137 212 216 24 . 202 266 4 276 330 54 185 230 112 127 . 99 120 . 277 285 Average Temperature 76 | . 43 63 40 8 . 69 90 4 75 112 21 64 97 45 42 . 40 41 . 101 121 Received Heat Transfer 5952 | . 375 . 414 18 . 567 872 135 228 407 399 219 618 96 101 . 259 183 . 284 777 Effects 15 | . . . . . . . 6 . 3 2 . . . . . . . . . 4 . Energy Bleed 3 | . . . . . . . 3 . . . . . . . . . . . . . . Interference 12 | . . . . . . . 3 . 3 2 . . . . . . . . . 4 . Siege Activations . | . . . . . . . . . . . . . . . . . . . . . . Robots Corrupted . | . . . . . . . . . . . . . . . . . . . . . . Combat Hostiles . | . . . . . . . . . . . . . . . . . . . . . . Parts Fried 2 | . 1 . . . . . . . . . . . 1 . . . . . . . . Impact Corruptions 2 | . . . . . . . . . 2 . . . . . . . . . . . . Robots Melted . | . . . . . . . . . . . . . . . . . . . . . . Combat Hostiles . | . . . . . . . . . . . . . . . . . . . . . . Parts Melted 3 | . . . . . . . . . 1 . 1 . . . . . . . . . 1 Heat Transferred 2283 | . 50 . 150 . . . 710 37 1036 . . . . . . . . . . 200 100 Parts Sabotaged . | . . . . . . . . . . . . . . . . . . . . . . Parts Stolen . | . . . . . . . . . . . . . . . . . . . . . . Parts Stripped . | . . . . . . . . . . . . . . . . . . . . . . Power Chain Reactions 3 | . 1 . 2 . . . . . . . . . . . . . . . . . . Alert | -11 -10 -10 -9 -9 -9 -8 -8 -8 -8 -8 -8 -8 -7 -7 -7 -7 -6 -6 -6 -6 -6 ------- Run | Yrd Mat Min Mat Min Exi Min Mat Gar Mat Gar Mat Sto Fac Low Low Dat Pro Fac Was Fac Ext Peak Influence 1297 | . 415 127 352 292 . 198 722 1117 579 1297 1131 531 665 . . . . 320 91 526 307 Initial 631 | . . 110 1 130 . . 11 469 544 258 631 394 70 . . . . 24 91 63 257 Average 297 | . 263 56 191 128 . 85 344 839 352 767 829 248 186 . . . . 44 91 157 200 Maximum Alert Level 4 | . 2 . 1 1 . . 3 4 2 4 4 2 2 . . . . 1 . 2 1 Low Security (%) 45 | 100 28 100 39 70 . 100 40 . 16 . . 22 72 . . . . 93 100 75 44 Level 1 28 | . 55 . 60 29 . . 8 . 53 18 . 69 14 . . . . 6 . 9 55 Level 2 15 | . 15 . . . . . 43 27 30 18 19 8 13 . . . . . . 14 . Level 3 9 | . . . . . . . 7 64 . 42 74 . . . . . . . . . . Level 4 1 | . . . . . . . . 8 . 20 5 . . . . . . . . . . Level 5 . | . . . . . . . . . . . . . . . . . . . . . . High Security . | . . . . . . . . . . . . . . . . . . . . . . Max Security . | . . . . . . . . . . . . . . . . . . . . . . Squads Dispatched 60 | . 5 . 5 . . . 12 . 3 . 7 5 7 . . . 1 4 . 8 3 Investigation 14 | . 3 . 3 . . . . . . . 1 1 . . . . . 1 . 4 1 Extermination 7 | . . . . . . . . . . . . . 3 . . . . 1 . 3 . Reinforcement 24 | . 2 . 2 . . . 3 . 3 . 2 3 4 . . . . 2 . 1 2 Assault 6 | . . . . . . . 2 . . . 3 . . . . . 1 . . . . Garrison 9 | . . . . . . . 7 . . . 1 1 . . . . . . . . . Intercept . | . . . . . . . . . . . . . . . . . . . . . . Searches Triggered . | . . . . . . . . . . . . . . . . . . . . . . Construction Impeded 3 | . . . . . . . . . . . . 1 1 . . . . 1 . . . Haulers Reinforced 2 | . . . . . . . . . . . . . 1 . . . . 1 . . . Active Scanning Responses . | . . . . . . . . . . . . . . . . . . . . . . Cargo Convoy Interrupts . | . . . . . . . . . . . . . . . . . . . . . . Stealth | -11 -10 -10 -9 -9 -9 -8 -8 -8 -8 -8 -8 -8 -7 -7 -7 -7 -6 -6 -6 -6 -6 --------- Run | Yrd Mat Min Mat Min Exi Min Mat Gar Mat Gar Mat Sto Fac Low Low Dat Pro Fac Was Fac Ext Distress Signals 29 | . . . 4 . . . 5 . 5 . 1 6 4 . . . . . . 1 3 Communications Jammed . | . . . . . . . . . . . . . . . . . . . . . . Distress Signals . | . . . . . . . . . . . . . . . . . . . . . . Times Spotted 590 | . 29 21 52 8 . 19 72 18 44 41 53 30 48 8 10 4 22 18 6 46 41 Peak Tracking Total 14 | . 4 14 4 3 . 4 4 5 4 8 9 3 4 5 4 2 9 8 6 5 8 Tactical Retreats 45 | . 1 1 1 . . 1 1 1 2 10 1 1 3 1 1 . 2 . . 9 9 Traps | -11 -10 -10 -9 -9 -9 -8 -8 -8 -8 -8 -8 -8 -7 -7 -7 -7 -6 -6 -6 -6 -6 ------- Run | Yrd Mat Min Mat Min Exi Min Mat Gar Mat Gar Mat Sto Fac Low Low Dat Pro Fac Was Fac Ext Traps Triggered 22 | . 2 . 1 . . . . 2 . 5 . . 2 . . . . 1 . 4 5 Indirectly . | . . . . . . . . . . . . . . . . . . . . . . Trap Hack Attempts . | . . . . . . . . . . . . . . . . . . . . . . Triggered . | . . . . . . . . . . . . . . . . . . . . . . Disarmed . | . . . . . . . . . . . . . . . . . . . . . . Reprogrammed . | . . . . . . . . . . . . . . . . . . . . . . Reused 6 | . . . . . . . . . 2 . . . . . . 4 . . . . . Traps Extracted . | . . . . . . . . . . . . . . . . . . . . . . Installed 9 | . . . . . . . . . 3 . . . . 2 . 4 . . . . . Triggered 4 | . . . . . . . . . 2 . . . . 1 1 . . . . . . Most Traps Carried 4 | . . . . . . . . 3 3 . . . . 4 4 4 . . . . . Machines | -11 -10 -10 -9 -9 -9 -8 -8 -8 -8 -8 -8 -8 -7 -7 -7 -7 -6 -6 -6 -6 -6 ---------- Run | Yrd Mat Min Mat Min Exi Min Mat Gar Mat Gar Mat Sto Fac Low Low Dat Pro Fac Was Fac Ext Machines Disabled 26 | . 2 . . . . . . 4 4 2 4 2 3 . . 1 1 . . 3 . Max in Single Turn 3 | . 1 . . . . . . 1 3 1 1 1 1 . . 1 1 . . 3 . Garrison Access 6 | . . . . . . . . . . . . 1 . . . . . 1 . 4 . Garrison Relay 1 | . . . . . . . . . . 1 . . . . . . . . . . . Machines Repaired . | . . . . . . . . . . . . . . . . . . . . . . Machines Dismantled . | . . . . . . . . . . . . . . . . . . . . . . Machines Sabotaged . | . . . . . . . . . . . . . . . . . . . . . . Overloaded Fab Kills . | . . . . . . . . . . . . . . . . . . . . . . Hacking | -11 -10 -10 -9 -9 -9 -8 -8 -8 -8 -8 -8 -8 -7 -7 -7 -7 -6 -6 -6 -6 -6 --------- Run | Yrd Mat Min Mat Min Exi Min Mat Gar Mat Gar Mat Sto Fac Low Low Dat Pro Fac Was Fac Ext Machines Accessed 118 | . 9 . 13 1 1 . 10 2 10 2 7 11 16 1 . 4 . 5 . 23 3 Terminals 78 | . 6 . 10 . . . 8 2 8 2 6 9 11 . . . . 2 . 11 3 Fabricators 8 | . . . . . . . . . . . . . 2 . . . . 2 . 4 . Repair Stations 9 | . 1 . 1 . . . 1 . 1 . 1 1 1 . . . . . . 2 . Recycling Units 4 | . 2 . . . . . . . . . . . 1 . . . . . . 1 . Scanalyzers 4 | . . . 2 . . . . . . . . . 1 . . . . . . 1 . Garrison Access 8 | . . . . . . . 1 . 1 . . 1 . . . . . 1 . 4 . Total Hacks 343 | . 20 . 40 1 1 . 20 2 33 7 30 25 39 1 . 27 . 13 . 80 4 Successful 208 | . 12 . 25 1 1 . 10 2 25 3 18 14 18 1 . 27 . 8 . 43 . Failed 133 | . 7 . 14 . . . 10 . 8 4 12 11 21 . . . . 5 . 37 4 Catastrophic 23 | . 1 . . . . . 2 . 1 2 1 3 5 . . . . 1 . 4 3 Database Lockouts 2 | . 1 . 1 . . . . . . . . . . . . . . . . . . Manual 163 | . 15 . 28 . . . 15 1 25 4 11 10 23 . . . . 5 . 26 . Terminals 219 | . 14 . 32 . . . 16 2 26 7 21 20 27 . . . . 6 . 44 4 Fabricators 14 | . . . . . . . . . . . . . 2 . . . . 4 . 8 . Repair Stations 37 | . 4 . 2 . . . 2 . 6 . 9 4 2 . . . . . . 8 . Recycling Units 7 | . 2 . . . . . . . . . . . 1 . . . . . . 4 . Scanalyzers 19 | . . . 6 . . . . . . . . . 7 . . . . . . 6 . Garrison Access 17 | . . . . . . . 2 . 1 . . 1 . . . . . 3 . 10 . Terminal Hacks 86 | . 2 . 10 1 1 . 2 1 7 2 6 8 2 1 . 27 . 2 . 14 . Record 12 | . . . . . 1 . . . . . . . . . . 11 . . . . . Part Schematic 11 | . . . . . . . . . . . . . . . . 9 . 1 . 1 . Robot Schematic 5 | . 1 . . . . . . . . . . . . . . 4 . . . . . Robot Analysis 4 | . . . 3 . . . . . 1 . . . . . . . . . . . . Prototype ID Bank 6 | . . . 3 . . . . . . . . . . . . 3 . . . . . Open Door 6 | . . . . 1 . . . . . . . 3 . 1 . . . . . 1 . Branch Access Points 2 | . 1 . . . . . . . . . . . . . . . . . . 1 . Terminal Index 2 | . . . . . . . . . 1 . . . . . . . . . . 1 . Fabricator Index 1 | . . . . . . . . . . . . . . . . . . . . 1 . Scanalyzer Index 1 | . . . . . . . . . . . . . . . . . . . . 1 . Garrison Index 1 | . . . . . . . . . 1 . . . . . . . . . . . . Alert Level 4 | . . . . . . . . . 1 . 1 1 . . . . . . . 1 . Unreport Threat 14 | . . . 1 . . . 1 . 3 . 3 2 1 . . . . . . 3 . Locate Traps 7 | . . . 1 . . . 1 . . . 2 . 1 . . . . 1 . 1 . Patrol Status 1 | . . . . . . . . . . . . . . . . . . . . 1 . Transport Status 1 | . . . 1 . . . . . . . . . . . . . . . . . . Recall Reinforcements 1 | . . . . . . . . . . . . 1 . . . . . . . . . Hauler Manifests 2 | . . . 1 . . . . . . . . 1 . . . . . . . . . Zone Layout 2 | . . . . . . . . . . . . . . . . . . . . 2 . Garrison Registry 2 | . . . . . . . . 1 . 1 . . . . . . . . . . . Patrol Navigation 1 | . . . . . . . . . . 1 . . . . . . . . . . . Fabricator Hacks 8 | . . . . . . . . . . . . . 2 . . . . 3 . 3 . Network Status 3 | . . . . . . . . . . . . . 2 . . . . 1 . . . Load Schematic 3 | . . . . . . . . . . . . . . . . . . 1 . 2 . Build 2 | . . . . . . . . . . . . . . . . . . 1 . 1 . Repair Station Hacks 30 | . 4 . 2 . . . 2 . 6 . 6 4 1 . . . . . . 5 . Scan Component 16 | . 2 . 1 . . . 1 . 3 . 3 2 1 . . . . . . 3 . Repair 14 | . 2 . 1 . . . 1 . 3 . 3 2 . . . . . . . 2 . Recycling Unit Hacks 1 | . . . . . . . . . . . . . . . . . . . . 1 . Retrieve Components 1 | . . . . . . . . . . . . . . . . . . . . 1 . Scanalyzer 12 | . . . 4 . . . . . . . . . 4 . . . . . . 4 . Insert Component 6 | . . . 2 . . . . . . . . . 2 . . . . . . 2 . Analyze 6 | . . . 2 . . . . . . . . . 2 . . . . . . 2 . Garrison Access Hacks 8 | . . . . . . . 1 . 1 . . 1 . . . . . 1 . 4 . Unlock Access 2 | . . . . . . . 1 . 1 . . . . . . . . . . . . Seal Access 6 | . . . . . . . . . . . . 1 . . . . . 1 . 4 . Unauthorized Hacks 63 | . 6 . 9 . . . 5 1 11 1 6 1 9 . . . . 2 . 12 . Terminals 61 | . 4 . 9 . . . 5 1 11 1 6 1 9 . . . . 2 . 12 . Track 4 | . . . 1 . . . . . 1 . 1 . . . . . . . . 1 . Assimilate 5 | . . . 1 . . . . . . . . . 2 . . . . . . 2 . Botnet 11 | . . . 2 . . . . . 3 . 2 . 1 . . . . 1 . 2 . Disrupt 1 | . . . . . . . . . . . . . . . . . . . . 1 . Operators 4 | . . . . . . . . . 1 . 1 . 1 . . . . . . 1 . Skim 34 | . 4 . 5 . . . 5 . 6 . 2 1 5 . . . . 1 . 5 . Override 2 | . . . . . . . . 1 . 1 . . . . . . . . . . . Fabricators . | . . . . . . . . . . . . . . . . . . . . . . Repair Stations . | . . . . . . . . . . . . . . . . . . . . . . Recycling Units 2 | . 2 . . . . . . . . . . . . . . . . . . . . Tunnel 2 | . 2 . . . . . . . . . . . . . . . . . . . . Scanalyzers . | . . . . . . . . . . . . . . . . . . . . . . Garrison Access . | . . . . . . . . . . . . . . . . . . . . . . Data Cores Recovered 1 | . . . . . . . . . . . 1 . . . . . . . . . . Used 1 | . . . . . . . . . . . 1 . . . . . . . . . . Hacking Detections 91 | . 6 . 11 . . . 10 1 9 2 7 7 16 . . . . 4 . 15 3 Full Trace Events 10 | . . . 2 . . . . . . . 1 1 . . . . . 1 . 4 1 Feedback Events . | . . . . . . . . . . . . . . . . . . . . . . Feedback Blocked . | . . . . . . . . . . . . . . . . . . . . . . Robot Schematics Acquired 5 | . 1 . . . . . . . . . . . . . . 4 . . . . . Robots Built . | . . . . . . . . . . . . . . . . . . . . . . Authchips . | . . . . . . . . . . . . . . . . . . . . . . Time . | . . . . . . . . . . . . . . . . . . . . . . Total Robot Build Rating . | . . . . . . . . . . . . . . . . . . . . . . Part Schematics Acquired 13 | . . . . . . . . . . . . . 1 . . 9 . 1 . 2 . Parts Built 4 | . . . . . . . . . . . . . . . . . . 2 . 2 . Authchips . | . . . . . . . . . . . . . . . . . . . . . . Time 83 | . . . . . . . . . . . . . . . . . . 36 . 47 . Total Part Build Rating 16 | . . . . . . . . . . . . . . . . . . 6 . 10 . Parts Repaired 14 | . 2 . 1 . . . 1 . 3 . 3 2 . . . . . . . 2 . Time 596 | . 52 . 108 . . . 32 . 132 . 132 88 . . . . . . . 52 . Parts Recycled . | . . . . . . . . . . . . . . . . . . . . . . Recycled Matter . | . . . . . . . . . . . . . . . . . . . . . . Retrieved Matter . | . . . . . . . . . . . . . . . . . . . . . . Retrieved Components . | . . . . . . . . . . . . . . . . . . . . . . Parts Scanalyzed 5 | . . . 1 . . . . . . . . . 2 . . . . . . 2 . Part Schematics Acquired 2 | . . . . . . . . . . . . . 1 . . . . . . 1 . Parts Damaged . | . . . . . . . . . . . . . . . . . . . . . . Bothacking | -11 -10 -10 -9 -9 -9 -8 -8 -8 -8 -8 -8 -8 -7 -7 -7 -7 -6 -6 -6 -6 -6 ------------ Run | Yrd Mat Min Mat Min Exi Min Mat Gar Mat Gar Mat Sto Fac Low Low Dat Pro Fac Was Fac Ext Used RIF Installer . | . . . . . . . . . . . . . . . . . . . . . . Robots Hacked . | . . . . . . . . . . . . . . . . . . . . . . Non-combat . | . . . . . . . . . . . . . . . . . . . . . . Combat . | . . . . . . . . . . . . . . . . . . . . . . Robot Hacks Applied . | . . . . . . . . . . . . . . . . . . . . . . Relay Couplers Released 4 | . . . . . . . . . . 4 . . . . . . . . . . . Machine Destruction 4 | . . . . . . . . . . 4 . . . . . . . . . . . Fabnet Peak Effective % . | . . . . . . . . . . . . . . . . . . . . . . Robots Rewired 18 | . . . . . . . . . . 7 . . . . . . . . . . 11 Allies Hacked . | . . . . . . . . . . . . . . . . . . . . . . Hacks Repelled . | . . . . . . . . . . . . . . . . . . . . . . Allies | -11 -10 -10 -9 -9 -9 -8 -8 -8 -8 -8 -8 -8 -7 -7 -7 -7 -6 -6 -6 -6 -6 -------- Run | Yrd Mat Min Mat Min Exi Min Mat Gar Mat Gar Mat Sto Fac Low Low Dat Pro Fac Was Fac Ext Total Allies 39 | . . 2 1 4 . . . . . 7 . 10 2 . . . . . . 2 11 Largest Group 10 | . . 2 1 4 3 3 . . . 6 6 10 1 . . . . . . 1 4 Highest-Rated Group 173 | . . 41 10 71 40 40 . . . 114 114 173 26 . . . . . . 26 140 Highest-Rated Ally 39 | . . 31 10 31 16 16 . . . 21 21 29 26 . . . . . . 26 39 Total Orders 38 | . . . . . . . . . . . . 2 2 7 . 1 7 2 . 15 2 STAY 1 | . . . . . . . . . . . . . . . . . . . . 1 . ROAM 2 | . . . . . . . . . . . . 2 . . . . . . . . . FOLLOW 4 | . . . . . . . . . . . . . . . . . 1 . . 3 . EXPLORE 2 | . . . . . . . . . . . . . . 2 . . . . . . . RETURN 29 | . . . . . . . . . . . . . 2 5 . 1 6 2 . 11 2 Ally Attacks 220 | . . 1 . 3 . 30 . . . 5 53 73 . . . . . . . . 55 Total Damage 3800 | . . 21 . 40 . 303 . . . 108 1388 827 . . . . . . . . 1113 Kills 41 | . . 1 . 1 . 4 . . . 2 14 13 . . . . . . . . 6 Allies Corrupted . | . . . . . . . . . . . . . . . . . . . . . . Allies Melted 2 | . . . . . . 2 . . . . . . . . . . . . . . . Intel | -11 -10 -10 -9 -9 -9 -8 -8 -8 -8 -8 -8 -8 -7 -7 -7 -7 -6 -6 -6 -6 -6 ------- Run | Yrd Mat Min Mat Min Exi Min Mat Gar Mat Gar Mat Sto Fac Low Low Dat Pro Fac Was Fac Ext Robot Analysis Total 4 | . . . 3 . . . . . 1 . . . . . . . . . . . . Derelict Logs Recovered 7 | . . 1 . 1 . . . . . . . . . 2 1 . 2 . . . . Drone Launches 29 | . . . . . . . . . . . . . 2 6 . 2 4 3 . 10 2 Drone Recoveries 28 | . . . . . . . . . . . . . 2 5 . 1 5 3 . 10 2 Exploration | -11 -10 -10 -9 -9 -9 -8 -8 -8 -8 -8 -8 -8 -7 -7 -7 -7 -6 -6 -6 -6 -6 ------------- Run | Yrd Mat Min Mat Min Exi Min Mat Gar Mat Gar Mat Sto Fac Low Low Dat Pro Fac Was Fac Ext Turns Passed 32695 | 89 1473 768 2925 1019 502 984 3537 1012 2850 1296 1309 1802 2457 1725 1051 625 1697 1241 149 2763 1421 Spaces Moved 15627 | 50 673 439 1434 609 314 491 1240 381 1059 485 434 645 1174 933 669 312 894 674 141 1891 685 Core 1 | 1 . . . . . . . . . . . . . . . . . . . . . Treads 6639 | 49 673 439 1434 609 314 491 1240 342 . . 260 645 143 . . . . . . . . Legs 2552 | . . . . . . . . 39 1059 485 174 . . . . 96 513 179 . . 7 Wheels 6435 | . . . . . . . . . . . . . 1031 933 669 216 381 495 141 1891 678 Hover . | . . . . . . . . . . . . . . . . . . . . . . Flight . | . . . . . . . . . . . . . . . . . . . . . . Fastest Speed 50 | 50 160 160 160 160 160 160 160 190 190 190 190 230 130 130 130 130 120 100 100 100 115 Average Speed 166 | 157 160 160 171 160 160 160 231 234 190 190 211 234 159 144 144 157 161 149 100 114 119 Slowest Speed 400 | 160 160 160 240 160 160 160 240 240 190 190 385 235 400 145 145 330 330 192 100 115 260 Overloaded Moves . | . . . . . . . . . . . . . . . . . . . . . . Propulsion Burnouts . | . . . . . . . . . . . . . . . . . . . . . . Robots Hopped . | . . . . . . . . . . . . . . . . . . . . . . Cave-ins Triggered . | . . . . . . . . . . . . . . . . . . . . . . Exploration Rate (%) 69 | 5 98 93 98 97 65 98 86 60 75 60 51 82 41 76 82 80 87 13 84 47 53 Regions Visited 21 Branch Regions 10 Pre-discovered Areas 12 | . 2 1 . 2 1 . 3 . 1 . . . . 1 . 1 . . . . . Known Exits Taken 11 | . 1 . . . . 1 1 . 1 . 1 1 1 1 1 . 1 . . 1 . Unknown Exits Taken 6 | 1 . 1 1 1 1 . . . . . . . . . . 1 . . . . . Scrap Searched 13 | . . 2 . 2 . 2 . . . . . . . 3 2 . 2 . . . . Spaces Dug 74 | . . . . . . . . . 3 3 . . 6 3 . . 25 7 . 20 7 Terrain Destroyed 707 | . 4 32 6 . . . 66 59 14 7 47 . 24 36 78 . 172 81 . 30 51 Melee 43 | . . . . . . . . . 3 3 . . 6 3 . . 6 7 . 15 . Projectile 27 | . . . . . . . . . . . . . . . . . 3 . . 8 16 AOE 637 | . 4 32 6 . . . 66 59 11 4 47 . 18 33 78 . 163 74 . 7 35 Terrain Rammed . | . . . . . . . . . . . . . . . . . . . . . . Walls Destroyed . | . . . . . . . . . . . . . . . . . . . . . . Machines Disabled . | . . . . . . . . . . . . . . . . . . . . . . Actions | -11 -10 -10 -9 -9 -9 -8 -8 -8 -8 -8 -8 -8 -7 -7 -7 -7 -6 -6 -6 -6 -6 --------- Run | Yrd Mat Min Mat Min Exi Min Mat Gar Mat Gar Mat Sto Fac Low Low Dat Pro Fac Was Fac Ext Total 20132 | 57 886 473 1704 630 314 580 1576 450 1730 729 703 861 1546 1258 716 408 1079 841 149 2304 1138 Wait 2081 | . 86 6 62 7 . 24 80 2 512 54 147 125 148 246 12 30 94 71 8 206 161 Move 15609 | 49 672 438 1433 608 313 490 1240 380 1059 484 433 644 1173 932 668 311 893 674 140 1890 685 Hop . | . . . . . . . . . . . . . . . . . . . . . . Pick Up 121 | 2 7 2 23 1 1 3 20 6 9 2 5 4 4 4 . 2 3 7 1 12 3 Fast Attach 92 | 6 3 . 10 . . . 11 1 6 . 6 7 6 6 1 5 5 4 . 7 8 Attach 66 | . 2 5 1 . . 4 8 3 1 2 1 3 4 3 . 2 5 8 . 3 11 Detach 23 | . 2 . 3 . . . 3 . 1 . . 2 4 2 . 2 1 . . . 3 Swap 201 | . 7 3 17 2 . . 15 6 8 7 6 4 24 15 11 7 15 24 . 23 7 Drop 153 | . 5 . 35 . . . 24 7 11 2 6 8 14 8 1 5 4 6 . 17 . Fire 1126 | . 100 18 106 11 . 53 166 41 111 87 99 59 156 29 23 . 28 9 . 9 21 Melee 372 | . . . . . . . . . 3 7 . . 12 11 . 40 31 38 . 137 93 Ram . | . . . . . . . . . . . . . . . . . . . . . . Kick 13 | . . . . . . . . . 6 5 . . . . . . . . . . 2 Crush 39 | . 2 1 14 1 . 6 9 . . . . 5 1 . . . . . . . . Escape Stasis 56 | . . . . . . . . 4 . 20 . . . . . . . . . . 32 Rewire 171 | . . . . . . . . . . 59 . . . . . . . . . . 112 Trap 9 | . . . . . . . . . 3 . . . . 2 . 4 . . . . . Miscellaneous . | . . . . . . . . . . . . . . . . . . . . . . Route ------- -11/Scrapyard -10/Materials (discovered 3 exits: *Mat x2 / *Min) -10/Mines (discovered 2 exits: *Mat x2) -9/Materials (discovered 5 exits: *Mat x3 / *Min x2) -9/Mines (discovered 3 exits: *Mat x2 / *Exi) -9/Exiles (discovered 2 exits: [*Min x2]) -8/Mines (discovered 2 exits: *Mat x2) -8/Materials (discovered 5 exits: *Fac x3 / *Sto / Gar) -8/Garrison (discovered 3 exits: *Mat x3) -8/Materials (discovered 4 exits: *Fac x2 / *Sto / Gar) -8/Garrison (discovered 3 exits: *Mat x3) -8/Materials (discovered 3 exits: *Fac x2 / *Sto) -8/Storage (discovered 2 exits: *Fac / Rec) -7/Factory (discovered 6 exits: Fac x4 / *Low x2) -7/Lower Caves -7/Lower Caves (discovered 2 exits: *Fac / *Dat) -7/Data Miner -6/Proximity Caves -6/Factory (discovered 3 exits: *Low / Ext x2) -6/Waste -6/Factory (discovered 7 exits: *Fac x3 / *Low x2 / *Ext x2) -6/Extension (discovered 1 exit: Fac) History --------- Turn | Location | Event 13 | -11/Scrapyard | Discovered new exit (range 13) 90 | -11/Scrapyard | Entered Materials 224 | -10/Materials | Discovered new exit (range 6) 316 | -10/Materials | Build established: Mutant 754 | -10/Materials | Repaired Lgt. Treads 782 | -10/Materials | Repaired Lgt. Treads 885 | -10/Materials | Central database locked down 885 | -10/Materials | Identified exit to Mines 891 | -10/Materials | Discovered new exit (range 15) 1024 | -10/Materials | Discovered new exit (range 16) 1563 | -10/Materials | Entered Mines 1587 | -10/Mines | Learned location of Zion (-6) 1631 | -10/Mines | Discovered new exit (range 11) 1780 | -10/Mines | Assembled infested the area 1785 | -10/Mines | Assisted by a Guerilla fighting off Assembled 1829 | -10/Mines | Core integrity fell below 50% 1847 | -10/Mines | Lost 3 allies 1856 | -10/Mines | Destroyed 10 combat bots 1862 | -10/Mines | Lost 5 parts (1p2n1u1w) 1925 | -10/Mines | Found a damaged Exp. Sensor Array with a note attached 1928 | -10/Mines | Found Prototype Device 1929 | -10/Mines | Identified Exp. Sensor Array 2284 | -10/Mines | Discovered new exit (range 5) 2331 | -10/Mines | Entered Materials 2331 | -9/Materials | Evolved 2 slots: Propulsion x1, Utility x1 2536 | -9/Materials | Discovered new exit (range 10) 3066 | -9/Materials | Discovered new exit (range 4) 3344 | -9/Materials | Discovered new exit (range 5) 3793 | -9/Materials | Discovered new exit (range 11) 3865 | -9/Materials | Identified exit to Materials 3866 | -9/Materials | Repaired Exp. Sensor Array 3899 | -9/Materials | Central database locked down 3924 | -9/Materials | Learned Storage emergency access door positions 4014 | -9/Materials | Learned Storage interactive machine intel 4045 | -9/Materials | Learned Storage trap positions 4068 | -9/Materials | Learned 2 Storage zone layouts 4102 | -9/Materials | Learned location of 1 exit from Recycling 5256 | -9/Materials | Entered Mines 5263 | -9/Mines | Escorted by a lone wolf Derelict 5283 | -9/Mines | Learned location of Storage (-8) 5393 | -9/Mines | Learned location of Recycling (-8) 5505 | -9/Mines | Deemed a non-threat by the Exiles lab entrance 5507 | -9/Mines | Discovered new exit (range 5) 5901 | -9/Mines | Found the Drone Emporium 5908 | -9/Mines | Found Prototype Device 5909 | -9/Mines | Identified Sensor Drone Bay 5999 | -9/Mines | Found a hidden stash of uninstalled traps 6031 | -9/Mines | Assisted by bots powering up and referring to "LRC-V3" 6275 | -9/Mines | Entered Exiles 6275 | -9/Exiles | Accompanied by 4 allies 6301 | -9/Exiles | Discovered new exit (range 15) 6319 | -9/Exiles | Met 8R-AWN 6343 | -9/Exiles | Met EX-HEX 6403 | -9/Exiles | Met EX-DEC 6481 | -9/Exiles | Visited The Gauntlet 6760 | -9/Exiles | Discovered new exit (range 12) 6777 | -9/Exiles | Entered Mines 6777 | -8/Mines | Accompanied by 3 allies 6883 | -8/Mines | Lost 3 allies 7099 | -8/Mines | Discovered exit to Materials (range 11) 7502 | -8/Mines | Lost 5 parts (1p1n1u2w) 7761 | -8/Mines | Entered Materials 7761 | -8/Materials | Evolved 2 slots: Utility x2 8154 | -8/Materials | Discovered new exit (range 3) 9329 | -8/Materials | Garrison activated, responded to threat 9565 | -8/Materials | Discovered new exit (range 10) 9713 | -8/Materials | Learned location of 1 exit from Extension 9742 | -8/Materials | Learned Storage terminal intel 9754 | -8/Materials | Lost 4 parts (2n1u1w) 9782 | -8/Materials | Identified exit to Factory 10416 | -8/Materials | Garrison activated, responded to threat 10561 | -8/Materials | First assault squad dispatched 10571 | -8/Materials | Garrison activated, responded to threat 11116 | -8/Materials | Repaired Imp. Treads 11298 | -8/Materials | Identified exit to Garrison 11298 | -8/Materials | Entered Garrison 11333 | -8/Garrison | Triggered checkpoint 11560 | -8/Garrison | Triggered checkpoint 11585 | -8/Garrison | Triggered checkpoint 11621 | -8/Garrison | Destroyed 11 combat bots 11723 | -8/Garrison | Discovered new exit (range 10) 11752 | -8/Garrison | Discovered new exit (range 65) 11752 | -8/Garrison | Discovered new exit (range 35) 11752 | -8/Garrison | Discovered new exit (range 6) 12121 | -8/Garrison | Identified exit to Materials 12124 | -8/Garrison | Triggered checkpoint 12310 | -8/Garrison | Entered Materials 12311 | -8/Materials | Identified exit to Storage 13226 | -8/Materials | Discovered exit to Factory (range 8) 13526 | -8/Materials | Discovered exit to Factory (range 9) 13638 | -8/Materials | Learned location of 2 exits from Factory 13778 | -8/Materials | Learned Factory stockpile data 13835 | -8/Materials | Learned Storage security intel 13883 | -8/Materials | Learned Storage emergency access door positions 14134 | -8/Materials | Learned location of 1 exit from Recycling 14204 | -8/Materials | Learned location of 1 exit from Lower Caves 14254 | -8/Materials | Learned Factory terminal intel 14314 | -8/Materials | Learned location of 1 exit from Lower Caves 14948 | -8/Materials | Repaired Med. Reactive Plating 14993 | -8/Materials | Repaired Imp. Carbon-fiber Leg 15039 | -8/Materials | Repaired Imp. Carbon-fiber Leg 15160 | -8/Materials | Identified exit to Garrison 15160 | -8/Materials | Entered Garrison 15211 | -8/Garrison | Triggered checkpoint 15306 | -8/Garrison | Triggered checkpoint 15387 | -8/Garrison | Triggered checkpoint 15398 | -8/Garrison | Triggered checkpoint 15430 | -8/Garrison | Triggered checkpoint 15431 | -8/Garrison | Core integrity fell below 50% 15581 | -8/Garrison | Triggered checkpoint 15706 | -8/Garrison | Discovered new exit (range 12) 15987 | -8/Garrison | Discovered new exit (range 11) 16024 | -8/Garrison | Triggered checkpoint 16128 | -8/Garrison | Garrison Relay disabled 16182 | -8/Garrison | Discovered new exit (range 67) 16182 | -8/Garrison | Discovered new exit (range 23) 16182 | -8/Garrison | Discovered new exit (range 55) 16185 | -8/Garrison | Identified exit to Materials 16456 | -8/Garrison | Entered Materials 16456 | -8/Materials | Accompanied by 6 allies 16476 | -8/Materials | Garrison activated, responded to threat 16637 | -8/Materials | Build established: Commander-Mutant 16750 | -8/Materials | Repaired Imp. Carbon-fiber Leg 16795 | -8/Materials | Repaired Imp. Carbon-fiber Leg 16842 | -8/Materials | Repaired Med. Reactive Plating 16856 | -8/Materials | First assault squad dispatched 16927 | -8/Materials | Lost 3 allies 16975 | -8/Materials | Build established: Mutant 17121 | -8/Materials | Discovered exit to Factory (range 9) 17524 | -8/Materials | Discovered exit to Factory (range 11) 17765 | -8/Materials | Entered Storage 17766 | -8/Storage | Identified exit to Recycling 17768 | -8/Storage | Loaded intel: 15 trap records 17770 | -8/Storage | Loaded intel: 20 interactive machine locations 17771 | -8/Storage | Loaded intel: 15 terminal locations 17873 | -8/Storage | Garrison activated, responded to threat 18229 | -8/Storage | Core integrity fell below 20% 18537 | -8/Storage | Assisted by bots powering up and referring to "LRC-V3" 18640 | -8/Storage | Lost 4 allies 18826 | -8/Storage | Build established: Commander-Mutant 18926 | -8/Storage | Discovered exit to Factory (range 16) 18986 | -8/Storage | Repaired Rnf. Deuterium Engine 19032 | -8/Storage | Repaired Med. Reactive Plating 19567 | -8/Storage | Entered Factory 19567 | -7/Factory | Evolved 2 slots: Propulsion x1, Utility x1 19568 | -7/Factory | Identified exit to Lower Caves 19569 | -7/Factory | Identified exit to Factory 19571 | -7/Factory | Loaded intel: 25 terminal locations 19610 | -7/Factory | Build established: Mutant 20418 | -7/Factory | Discovered exit to Lower Caves (range 7) 21649 | -7/Factory | Learned location of 1 exit from Upper Caves 21923 | -7/Factory | Learned 2 Lower Caves zone layouts 21970 | -7/Factory | Learned 2 Proximity Caves zone layouts 22024 | -7/Factory | Entered Lower Caves 22025 | -7/Lower Caves | Identified exit to Lower Caves 22053 | -7/Lower Caves | Encountered a Warlord checkpoint 22129 | -7/Lower Caves | Met a Warlord Commander 22130 | -7/Lower Caves | Learned location of Warlord (-5) 22131 | -7/Lower Caves | Warlord Commander delivered Encrypted Comm Array 22401 | -7/Lower Caves | Found Encrypted Comm Array 22688 | -7/Lower Caves | Attracted the attention of an 0b10 checkpoint 22895 | -7/Lower Caves | Learned Factory stockpile data 22968 | -7/Lower Caves | Build established: Gladiator 23093 | -7/Lower Caves | Learned Factory emergency access door positions 23425 | -7/Lower Caves | Build established: Mutant 23749 | -7/Lower Caves | Entered another Lower Caves area 23749 | -7/Lower Caves | Accompanied by 1 ally 23750 | -7/Lower Caves | Identified exit to Data Miner 23751 | -7/Lower Caves | Attracted the attention of an 0b10 checkpoint 24144 | -7/Lower Caves | Encountered a Warlord checkpoint 24800 | -7/Lower Caves | Entered Data Miner 24800 | -7/Data Miner | Accompanied by 1 ally 24800 | -7/Data Miner | Discovered new exit (range 6) 24831 | -7/Data Miner | Met Data Miner 24877 | -7/Data Miner | Learned location of Section 7 (-2) 24877 | -7/Data Miner | Acquired the access code to Warlord's prototype stash 24900 | -7/Data Miner | Received God Mode back door access code from Data Miner 24949 | -7/Data Miner | Data Conduit disabled 25102 | -7/Data Miner | Found Prototype Device 25102 | -7/Data Miner | Identified Exp. Thermal Shield 25229 | -7/Data Miner | Found Exp. Thermal Shield 25425 | -7/Data Miner | Entered Proximity Caves 25425 | -6/Proximity Caves | Accompanied by 1 ally 25472 | -6/Proximity Caves | Attracted the attention of an 0b10 checkpoint 25550 | -6/Proximity Caves | Spotted B-75 Beast 25692 | -6/Proximity Caves | Core integrity fell below 50% 25785 | -6/Proximity Caves | Build established: Scavenger-Gladiator 26182 | -6/Proximity Caves | Learned Factory security intel 26292 | -6/Proximity Caves | Attracted the attention of an 0b10 outpost 26347 | -6/Proximity Caves | Lost 4 parts (2n1u1w) 26603 | -6/Proximity Caves | Build established: Mutant 26965 | -6/Proximity Caves | Build established: Scavenger-Mutant 27005 | -6/Proximity Caves | Discovered exit to Factory (range 7) 27122 | -6/Proximity Caves | Entered Factory 27122 | -6/Factory | Evolved 2 slots: Power x1, Utility x1 27123 | -6/Factory | Identified exit to Extension 27378 | -6/Factory | Fabricated Imp. Utility Shielding (x2) 27427 | -6/Factory | Discovered new exit (range 13) 27454 | -6/Factory | Identified exit to Lower Caves 28347 | -6/Factory | Destroyed 11 combat bots 28347 | -6/Factory | Lost 4 parts (2n1u1w) 28363 | -6/Factory | Sucked down chute 28363 | -6/Factory | Entered Waste 28378 | -6/Waste | EMP discharged 28392 | -6/Waste | Spotted C-40 Crusher 28403 | -6/Waste | Spotted C-40 Crusher 28405 | -6/Waste | Spotted C-40 Crusher 28412 | -6/Waste | Spotted C-40 Crusher 28469 | -6/Waste | Spotted C-40 Crusher 28478 | -6/Waste | EMP discharged 28478 | -6/Waste | System corruption reached 10% 28492 | -6/Waste | Discovered new exit (range 14) 28492 | -6/Waste | Spotted C-40 Crusher 28512 | -6/Waste | Entered Factory 28641 | -6/Factory | Build established: Scavenger-Gladiator 29013 | -6/Factory | Repaired Great Axe 29158 | -6/Factory | Build established: Hacker-Mutant 29237 | -6/Factory | Discovered new exit (range 9) 29303 | -6/Factory | Identified exit to Factory 29358 | -6/Factory | Learned 2 Extension zone layouts 29404 | -6/Factory | Learned location of 1 exit from Lower Caves 29439 | -6/Factory | Learned Hub_04(d) emergency access door positions 29466 | -6/Factory | Learned 2 Upper Caves zone layouts 29483 | -6/Factory | Learned Extension stockpile data 29543 | -6/Factory | Learned location of 1 exit from Proximity Caves 29795 | -6/Factory | Discovered exit to Factory (range 15) 30371 | -6/Factory | Build established: Hacker-Gladiator 30484 | -6/Factory | Repaired Broken Hvy. Missile Launcher 30738 | -6/Factory | Fabricated Weapon Mount? 31275 | -6/Factory | Entered Extension 32061 | -6/Extension | Build established: Gladiator 32599 | -6/Extension | Lost 3 parts (1p2u) 32634 | -6/Extension | Core integrity fell below 50% 32666 | -6/Extension | Core integrity fell below 20% 32696 | -6/Extension | Destroyed self with Heavy Missile Launcher Last Messages --------------- 32645_ Imp. Utility Shielding destroyed. 32646_ G-67 Veteran destroyed. 32654_ System corrupted: Heat flow error (+197). 32654_ Acquired Carbon-fiber Leg. 32656_ Y-54 Guardian suffers critical hit (Impale). 32662_ Mak. Spear destroyed. 32668_ Y-54 Guardian destroyed. 32669_ Acquired 15 matter. 32673_ U-05 Engineer builds a Door. 32674_ X6&V/8%VYU%6WUK&FJU&ZBQRNV%# DFU 32680_ Acquired 1 matter. 32681_ Carbon-fiber Leg destroyed. 32681_ Y-54 Guardian Flak Gun severed. 32684_ Destroyed Imp. Heat Sink. 32684_ Great Axe destroyed. 32686_ Kicked Y-54 Guardian. 32695_ F>LWT>VJ|MME8TOLP3 H/ 32695_ The unstable cave ceiling collapses. 32696_ U-05 Engineer lays Concrete. 32696_ Y-54 Guardian destroyed. Map ----- +----------------------------------------------------+ | | | | | | | | | | | | | | | | | | | | | | | | | | | | | ??????????????????#########??????????????????????? | | ??????????????????# #?????#####????????????? | | ??????????????????# ##### ! #????????????? | | ################### "" ##???????????? | | T" ] ???????????? | | ???????????????? | | % ###????????????????????? | | #######???????##### % # ##???????????????????? | | ??????????????????### [ #???????????????????? | | ???#######??????????# # #???????????????????? | | ???# #????####### !%= #???????????????????? | | #### ###### = @% #???????????????????? | | !+%= */l [ = ##########??????????? | | #### ######*==%u* %=[=%[%=!![ ???? | | ???# #????# =h=[ !![ % #########??????????? | | ??### ####????# !== !%=####??????????????????? | | ??#T #??????# % ## ###?????????????????????? | | ??##""##??????###########????????????????????????? | | ?????????????????????????????????????????????????? | | ?????????????????????????????????????????????????? | | ?????????????????????????????????????????????????? | | ?????????????????????????????????????????????????? | | ?????????????????????????????????????????????????? | | ?????????????????????????????????????????????????? | | ?????????????????????????????????????????????????? | | ?????????????????????????????????????????????????? | | ?????????????????????????????????????????????????? | | ?????????????????????????????????????????????????? | | ?????????????????????????????????????????????????? | | ?????????????????????????????????????????????????? | | ?????????????????????????????????????????????????? | | ?????????????????????????????????????????????????? | | ?????????????????????????????????????????????????? | | ?????????????????????????????????????????????????? | | ?????????????????????????????????????????????????? | | ?????????????????????????????????????????????????? | +----------------------------------------------------+ Best States ------------- Heat Dissipation 61 Energy Generation 30 Energy Capacity 500 Matter Stores 300 Matter Capacity 300 Sight Range 16 Robot Scan Range 20 Terrain Scan Density 10 Jamming Range 16 Armor Coverage 825 Resistance: KI 30 Resistance: TH 30 Utility Shielding 66 Melee Speed Boost 40 Evasion (%) 65 Targeting Accuracy 20 Melee Accuracy 16 Recoil Reduction 4 Offensive Hacking 10 Defensive Hacking 10 Trap Extractor Capacity 4 Item Schematics ----------------- Imp. Utility Shielding | -7/Factory | Scanalyzed Combat Drone Bay | -7/Data Miner | Free Lgt. Regenerative Plating | -7/Data Miner | Free Cld. Cesium-ion Thruster | -7/Data Miner | Free Exp. Targeting Computer | -7/Data Miner | Free Shock Maul | -7/Data Miner | Free Arm. Medium Treads | -7/Data Miner | Free Imp. Recalibrator | -7/Data Miner | Free Hyp. Coil Gun | -7/Data Miner | Free Imp. Shock Absorption System | -7/Data Miner | Free Weapon Mount | -6/Factory | Hacked Mak. Spear | -6/Factory | Scanalyzed Microactuators | -6/Factory | Hacked Robot Schematics ------------------ M-13 Machinist | -10/Materials | Hacked M-22 Extractor | -7/Data Miner | Free X-57 Shotgunner | -7/Data Miner | Free M-28 Smith | -7/Data Miner | Free B-60 Warrior | -7/Data Miner | Free Fabricated ------------ Imp. Utility Shielding | x2 | -6/Factory Weapon Mount | x2 | -6/Factory Alien Tech Used ----------------- None Achievements -------------- None Challenges ------------ None Game ------ Seed PhysicsBehemothHammer Manual? 0 Play Time 02:47:24 Cumulative 503.0 hours Start 2024.08.30 @ 07:58:30 End 2024.08.31 @ 07:26:25 Sessions 11 Manual Loads 0 Difficulty Rogue Special Mode None Game No. 295 Rogue 295 Adventurer 0 Explorer 0 Win Type - Total 36 Types 25/3/4/1/1/0/1/1/0 Lore% 80 Gallery% 85 Achievement% 85 Wizard Run 0 Options --------- Layout 0 ASCII 0 Keyboard 1 Movement Numpad Keybinds 0 Fullscreen 2 Font 18/SmallcapsGlow Map View 76x50 Zoom Use 0% Tactical HUD 1 Map Filters NONE Filters NONE Steam 1 RUN: 64ce883f-0909-455a-bbfa-8ce48dcac274